[Event "Titled Tuesday Blitz April 26 Late 2022"]
[White "Akrakan"]
[Black "Kohler, Aran"]
[BlackFideId "1002856"]
[WhiteElo "2092"]
[BlackElo "2258"]
[Result "0-1"]
[Round "10"]
[TimeControl "180+1"]
[Date "2022.04.26"]
[WhiteClock "0:01:06"]
[BlackClock "0:00:08"]

1. e4 {[%clk 0:03:00]}  e5 {[%clk 0:02:56]} 2. Nf3 {[%clk 0:03:01]}  d6 {[%clk 0:02:56]} 3. Bc4 {[%clk 0:03:01]}  Be6 {[%clk 0:02:55]} 4. Bb3 {[%clk 0:02:59]}  Bxb3 {[%clk 0:02:54]} 5. axb3 {[%clk 0:02:59]}  Nf6 {[%clk 0:02:49]} 6. d3 {[%clk 0:02:58]}  Nc6 {[%clk 0:02:49]} 7. O-O {[%clk 0:02:58]}  Be7 {[%clk 0:02:49]} 8. Re1 {[%clk 0:02:58]}  O-O {[%clk 0:02:48]} 9. Nbd2 {[%clk 0:02:57]}  a6 {[%clk 0:02:40]} 10. Nf1 {[%clk 0:02:58]}  Re8 {[%clk 0:02:32]} 11. Ne3 {[%clk 0:02:58]}  Bf8 {[%clk 0:02:31]} 12. c3 {[%clk 0:02:50]}  d5 {[%clk 0:02:30]} 13. Nf5 {[%clk 0:02:49]}  dxe4 {[%clk 0:02:28]} 14. dxe4 {[%clk 0:02:44]}  Qxd1 {[%clk 0:02:28]} 15. Rxd1 {[%clk 0:02:44]}  Nxe4 {[%clk 0:02:28]} 16. Be3 {[%clk 0:02:40]}  Nd6 {[%clk 0:02:21]} 17. Ng3 {[%clk 0:02:37]}  Rad8 {[%clk 0:02:01]} 18. Rd2 {[%clk 0:02:34]}  Nb5 {[%clk 0:01:52]} 19. Rad1 {[%clk 0:02:33]}  Rxd2 {[%clk 0:01:51]} 20. Rxd2 {[%clk 0:02:33]}  e4 {[%clk 0:01:43]} 21. Nd4 {[%clk 0:02:31]}  Ncxd4 {[%clk 0:01:42]} 22. Bxd4 {[%clk 0:02:30]}  Nxd4 {[%clk 0:01:14]} 23. Rxd4 {[%clk 0:02:30]}  e3 {[%clk 0:01:14]} 24. fxe3 {[%clk 0:02:30]}  Bc5 {[%clk 0:01:12]} 25. Rd7 {[%clk 0:02:27]}  Bxe3+ {[%clk 0:01:10]} 26. Kf1 {[%clk 0:02:27]}  Bb6 {[%clk 0:01:10]} 27. b4 {[%clk 0:02:18]}  g6 {[%clk 0:01:05]} 28. c4 {[%clk 0:02:18]}  Rc8 {[%clk 0:00:48]} 29. c5 {[%clk 0:02:17]}  Ba7 {[%clk 0:00:49]} 30. Ne4 {[%clk 0:02:10]}  Kg7 {[%clk 0:00:37]} 31. Ke2 {[%clk 0:02:04]}  h6 {[%clk 0:00:34]} 32. Kd3 {[%clk 0:02:04]}  Bb8 {[%clk 0:00:31]} 33. Kc4 {[%clk 0:01:58]}  Re8 {[%clk 0:00:31]} 34. Kd3 {[%clk 0:01:48]}  c6 {[%clk 0:00:27]} 35. Rxb7 {[%clk 0:01:46]}  Bxh2 {[%clk 0:00:28]} 36. Rb6 {[%clk 0:01:45]}  Be5 {[%clk 0:00:28]} 37. b3 {[%clk 0:01:44]}  Rd8+ {[%clk 0:00:21]} 38. Ke2 {[%clk 0:01:44]}  Rc8 {[%clk 0:00:21]} 39. Rxa6 {[%clk 0:01:43]}  g5 {[%clk 0:00:18]} 40. Nf2 {[%clk 0:01:40]}  f5 {[%clk 0:00:18]} 41. Nd3 {[%clk 0:01:41]}  Bc3 {[%clk 0:00:17]} 42. Ra7+ {[%clk 0:01:34]}  Kg6 {[%clk 0:00:17]} 43. Ra6 {[%clk 0:01:35]}  Kh5 {[%clk 0:00:16]} 44. Nf2 {[%clk 0:01:33]}  Bxb4 {[%clk 0:00:15]} 45. Nd3 {[%clk 0:01:33]}  Bc3 {[%clk 0:00:15]} 46. Rb6 {[%clk 0:01:32]}  Re8+ {[%clk 0:00:14]} 47. Kf3 {[%clk 0:01:29]}  g4+ {[%clk 0:00:14]} 48. Kf2 {[%clk 0:01:28]}  Bd4+ {[%clk 0:00:13]} 49. Kf1 {[%clk 0:01:27]}  Re3 {[%clk 0:00:13]} 50. Nf4+ {[%clk 0:01:23]}  Kg5 {[%clk 0:00:13]} 51. Ne2 {[%clk 0:01:24]}  Bxc5 {[%clk 0:00:12]} 52. Rxc6 {[%clk 0:01:23]}  Ba3 {[%clk 0:00:12]} 53. Rb6 {[%clk 0:01:17]}  h5 {[%clk 0:00:10]} 54. b4 {[%clk 0:01:17]}  h4 {[%clk 0:00:11]} 55. b5 {[%clk 0:01:17]}  Rb3 {[%clk 0:00:11]} 56. Rb8 {[%clk 0:01:17]}  Rb1+ {[%clk 0:00:11]} 57. Kf2 {[%clk 0:01:18]}  Bc5+ {[%clk 0:00:11]} 58. Nd4 {[%clk 0:01:17]}  Bxd4+ {[%clk 0:00:12]} 59. Ke2 {[%clk 0:01:17]}  Bg1 {[%clk 0:00:11]} 60. Kd3 {[%clk 0:01:13]}  h3 {[%clk 0:00:11]} 61. gxh3 {[%clk 0:01:13]}  gxh3 {[%clk 0:00:12]} 62. Rg8+ {[%clk 0:01:13]}  Kf4 {[%clk 0:00:12]} 63. b6 {[%clk 0:01:11]}  Bxb6 {[%clk 0:00:10]} 64. Rh8 {[%clk 0:01:11]}  Rb3+ {[%clk 0:00:10]} 65. Kc4 {[%clk 0:01:11]}  Rg3 {[%clk 0:00:08]} 66. Rh4+ {[%clk 0:01:09]}  Kf3 {[%clk 0:00:09]} 67. Kd5 {[%clk 0:01:08]}  Be3 {[%clk 0:00:08]} 68. Ke5 {[%clk 0:01:07]}  f4 {[%clk 0:00:08]} 69. Kf5 {[%clk 0:01:06]}  Kg2 {[%clk 0:00:08]} 70. Ke4 {[%clk 0:01:06]}  h2 {[%clk 0:00:08]} 0-1


[Site "https://www.chess.com"]

[Event "Titled Tuesday Blitz April 26 Late 2022"]
[White "Barria Zuniga, Daniel"]
[Black "Leiva, Gianmarco"]
[WhiteFideId "3400816"]
[BlackFideId "3804399"]
[WhiteElo "2414"]
[BlackElo "2323"]
[Result "1-0"]
[Round "10"]
[TimeControl "180+1"]
[Date "2022.04.26"]
[WhiteClock "0:00:10"]
[BlackClock "0:00:01"]

1. c4 {[%clk 0:03:00]}  e5 {[%clk 0:02:59]} 2. g3 {[%clk 0:03:01]}  Nf6 {[%clk 0:02:59]} 3. Bg2 {[%clk 0:03:01]}  Bc5 {[%clk 0:02:55]} 4. Nc3 {[%clk 0:03:00]}  d6 {[%clk 0:02:55]} 5. e3 {[%clk 0:02:55]}  O-O {[%clk 0:02:52]} 6. Nge2 {[%clk 0:02:55]}  c6 {[%clk 0:02:50]} 7. d4 {[%clk 0:02:55]}  Bb6 {[%clk 0:02:51]} 8. O-O {[%clk 0:02:54]}  Re8 {[%clk 0:02:50]} 9. Qc2 {[%clk 0:02:52]}  Bc7 {[%clk 0:02:40]} 10. Rd1 {[%clk 0:02:40]}  Nbd7 {[%clk 0:02:39]} 11. e4 {[%clk 0:02:23]}  exd4 {[%clk 0:02:30]} 12. Nxd4 {[%clk 0:02:22]}  Ne5 {[%clk 0:02:31]} 13. b3 {[%clk 0:02:21]}  Bg4 {[%clk 0:02:27]} 14. f3 {[%clk 0:02:21]}  Bh5 {[%clk 0:02:28]} 15. g4 {[%clk 0:02:09]}  Nfxg4 {[%clk 0:02:22]} 16. fxg4 {[%clk 0:02:09]}  Bxg4 {[%clk 0:02:23]} 17. Rf1 {[%clk 0:01:48]}  Bb6 {[%clk 0:02:23]} 18. Be3 {[%clk 0:01:47]}  Re6 {[%clk 0:01:46]} 19. Na4 {[%clk 0:01:32]}  Bxd4 {[%clk 0:01:42]} 20. Bxd4 {[%clk 0:01:32]}  Qh4 {[%clk 0:01:43]} 21. Qf2 {[%clk 0:01:28]}  Qh5 {[%clk 0:01:43]} 22. Nc3 {[%clk 0:01:13]}  Rf6 {[%clk 0:01:38]} 23. Qg3 {[%clk 0:01:11]}  Rg6 {[%clk 0:01:38]} 24. Kh1 {[%clk 0:01:00]}  Be2 {[%clk 0:01:38]} 25. Nxe2 {[%clk 0:00:58]}  Rxg3 {[%clk 0:01:31]} 26. Nxg3 {[%clk 0:00:59]}  Qg4 {[%clk 0:01:28]} 27. Nf5 {[%clk 0:00:56]}  f6 {[%clk 0:01:18]} 28. Rae1 {[%clk 0:00:51]}  Rd8 {[%clk 0:00:42]} 29. Re3 {[%clk 0:00:50]}  Rd7 {[%clk 0:00:42]} 30. c5 {[%clk 0:00:30]}  Nf7 {[%clk 0:00:03]} 31. Rg3 {[%clk 0:00:25]}  Qe2 {[%clk 0:00:03]} 32. Rxg7+ {[%clk 0:00:24]}  Kf8 {[%clk 0:00:04]} 33. cxd6 {[%clk 0:00:20]}  Nxd6 {[%clk 0:00:02]} 34. Rxd7 {[%clk 0:00:17]}  Nxe4 {[%clk 0:00:01]} 35. Nd6 {[%clk 0:00:10]} 1-0


[Site "https://www.chess.com"]

[Event "Titled Tuesday Blitz April 26 Late 2022"]
[White "Czopor, Maciej"]
[Black "Chuemsakul, Sarocha"]
[WhiteFideId "21805431"]
[BlackFideId "6203710"]
[WhiteElo "2682"]
[BlackElo "2402"]
[Result "1/2-1/2"]
[Round "10"]
[TimeControl "180+1"]
[Date "2022.04.26"]
[WhiteClock "0:00:03"]
[BlackClock "0:00:08"]

1. d4 {[%clk 0:03:00]}  Nf6 {[%clk 0:02:57]} 2. c4 {[%clk 0:03:01]}  g6 {[%clk 0:02:57]} 3. Nc3 {[%clk 0:03:01]}  Bg7 {[%clk 0:02:57]} 4. e4 {[%clk 0:03:02]}  d6 {[%clk 0:02:57]} 5. Be2 {[%clk 0:03:02]}  Nbd7 {[%clk 0:02:49]} 6. Be3 {[%clk 0:03:02]}  e5 {[%clk 0:02:42]} 7. d5 {[%clk 0:03:02]}  a5 {[%clk 0:02:42]} 8. h4 {[%clk 0:03:01]}  h5 {[%clk 0:02:32]} 9. Nh3 {[%clk 0:03:01]}  Nc5 {[%clk 0:02:32]} 10. Qc2 {[%clk 0:03:01]}  c6 {[%clk 0:02:31]} 11. Ng5 {[%clk 0:02:59]}  cxd5 {[%clk 0:02:26]} 12. cxd5 {[%clk 0:02:56]}  b6 {[%clk 0:02:20]} 13. O-O {[%clk 0:02:28]}  O-O {[%clk 0:02:20]} 14. b3 {[%clk 0:02:14]}  Ba6 {[%clk 0:02:03]} 15. Bxa6 {[%clk 0:02:08]}  Rxa6 {[%clk 0:02:03]} 16. Qe2 {[%clk 0:01:40]}  Ra8 {[%clk 0:02:00]} 17. f3 {[%clk 0:01:40]}  Qe7 {[%clk 0:01:56]} 18. Qb5 {[%clk 0:01:36]}  Rfb8 {[%clk 0:01:48]} 19. a3 {[%clk 0:01:23]}  Qe8 {[%clk 0:01:48]} 20. b4 {[%clk 0:01:20]}  Nb3 {[%clk 0:01:37]} 21. Rab1 {[%clk 0:01:12]}  Nd4 {[%clk 0:01:36]} 22. Qxe8+ {[%clk 0:01:06]}  Nxe8 {[%clk 0:01:37]} 23. Bxd4 {[%clk 0:01:00]}  exd4 {[%clk 0:01:37]} 24. Nb5 {[%clk 0:01:00]}  axb4 {[%clk 0:01:36]} 25. Rxb4 {[%clk 0:00:55]}  Rc8 {[%clk 0:01:35]} 26. Rd1 {[%clk 0:00:46]}  Rc2 {[%clk 0:01:35]} 27. a4 {[%clk 0:00:36]}  Ra2 {[%clk 0:01:33]} 28. Nxd4 {[%clk 0:00:34]}  R2xa4 {[%clk 0:01:27]} 29. Rxa4 {[%clk 0:00:30]}  Rxa4 {[%clk 0:01:26]} 30. Nc6 {[%clk 0:00:31]}  b5 {[%clk 0:01:11]} 31. Rb1 {[%clk 0:00:28]}  Nc7 {[%clk 0:01:10]} 32. e5 {[%clk 0:00:18]}  Bxe5 {[%clk 0:00:24]} 33. Nxe5 {[%clk 0:00:16]}  dxe5 {[%clk 0:00:25]} 34. d6 {[%clk 0:00:17]}  Ne6 {[%clk 0:00:25]} 35. Nxe6 {[%clk 0:00:05]}  fxe6 {[%clk 0:00:26]} 36. Rxb5 {[%clk 0:00:06]}  Rd4 {[%clk 0:00:26]} 37. Rb8+ {[%clk 0:00:01]}  Kf7 {[%clk 0:00:26]} 38. Rb7+ {[%clk 0:00:02]}  Kf6 {[%clk 0:00:26]} 39. d7 {[%clk 0:00:02]}  Ke7 {[%clk 0:00:26]} 40. Rb5 {[%clk 0:00:02]}  Rxh4 {[%clk 0:00:20]} 41. Rxe5 {[%clk 0:00:02]}  Kxd7 {[%clk 0:00:21]} 42. Rg5 {[%clk 0:00:03]}  Ke7 {[%clk 0:00:16]} 43. Rxg6 {[%clk 0:00:03]}  Kf7 {[%clk 0:00:16]} 44. Rg5 {[%clk 0:00:02]}  Kf6 {[%clk 0:00:16]} 45. Rg8 {[%clk 0:00:03]}  Ra4 {[%clk 0:00:11]} 46. Kf2 {[%clk 0:00:03]}  Kf7 {[%clk 0:00:09]} 47. Rg5 {[%clk 0:00:02]}  h4 {[%clk 0:00:09]} 48. Rh5 {[%clk 0:00:02]}  Kf6 {[%clk 0:00:09]} 49. Ke3 {[%clk 0:00:02]}  Ra2 {[%clk 0:00:07]} 50. Rh6+ {[%clk 0:00:02]}  Kf5 {[%clk 0:00:07]} 51. Rxh4 {[%clk 0:00:02]}  Rxg2 {[%clk 0:00:07]} 52. Rh5+ {[%clk 0:00:02]}  Kf6 {[%clk 0:00:08]} 53. Ke4 {[%clk 0:00:02]}  Re2+ {[%clk 0:00:07]} 54. Kf4 {[%clk 0:00:03]}  e5+ {[%clk 0:00:07]} 55. Kg4 {[%clk 0:00:03]}  Rg2+ {[%clk 0:00:07]} 56. Kh3 {[%clk 0:00:03]}  Rg1 {[%clk 0:00:07]} 57. Kh2 {[%clk 0:00:04]}  Rg8 {[%clk 0:00:07]} 58. Kh3 {[%clk 0:00:02]}  Rg7 {[%clk 0:00:07]} 59. Kh2 {[%clk 0:00:02]}  Rg8 {[%clk 0:00:07]} 60. Kh3 {[%clk 0:00:02]}  Rg1 {[%clk 0:00:08]} 61. Kh2 {[%clk 0:00:03]}  Rg8 {[%clk 0:00:08]} 1/2-1/2


[Site "https://www.chess.com"]

[Event "Titled Tuesday Blitz April 26 Late 2022"]
[White "D`Arruda, Ricardo D."]
[Black "Qiao, Cindy"]
[WhiteFideId "100692"]
[BlackFideId "2620243"]
[WhiteElo "2367"]
[BlackElo "2241"]
[Result "1-0"]
[Round "10"]
[TimeControl "180+1"]
[Date "2022.04.26"]
[WhiteClock "0:01:24"]
[BlackClock "0:00:15"]

1. d4 {[%clk 0:02:50]}  d5 {[%clk 0:03:00]} 2. g3 {[%clk 0:02:49]}  Nf6 {[%clk 0:03:00]} 3. Bg2 {[%clk 0:02:50]}  e6 {[%clk 0:03:00]} 4. Nf3 {[%clk 0:02:50]}  Be7 {[%clk 0:03:01]} 5. c4 {[%clk 0:02:50]}  O-O {[%clk 0:03:01]} 6. O-O {[%clk 0:02:50]}  dxc4 {[%clk 0:03:02]} 7. Ne5 {[%clk 0:02:49]}  Nc6 {[%clk 0:03:02]} 8. Nxc6 {[%clk 0:02:48]}  bxc6 {[%clk 0:03:03]} 9. Nc3 {[%clk 0:02:47]}  Bb7 {[%clk 0:03:01]} 10. Qa4 {[%clk 0:02:34]}  Nd5 {[%clk 0:02:29]} 11. Qxc4 {[%clk 0:02:31]}  Bf6 {[%clk 0:02:16]} 12. Ne4 {[%clk 0:02:25]}  Nb6 {[%clk 0:01:51]} 13. Nxf6+ {[%clk 0:02:22]}  Qxf6 {[%clk 0:01:52]} 14. Qc5 {[%clk 0:02:14]}  Rad8 {[%clk 0:01:16]} 15. e3 {[%clk 0:01:59]}  Rd6 {[%clk 0:01:04]} 16. Bd2 {[%clk 0:01:56]}  Re8 {[%clk 0:01:02]} 17. Bc3 {[%clk 0:01:51]}  Qd8 {[%clk 0:01:00]} 18. Qa5 {[%clk 0:01:46]}  Qa8 {[%clk 0:00:46]} 19. b3 {[%clk 0:01:42]}  Nd5 {[%clk 0:00:35]} 20. Bd2 {[%clk 0:01:40]}  e5 {[%clk 0:00:30]} 21. dxe5 {[%clk 0:01:35]}  Rxe5 {[%clk 0:00:29]} 22. e4 {[%clk 0:01:35]}  Nf6 {[%clk 0:00:18]} 23. Qxe5 {[%clk 0:01:34]}  Rxd2 {[%clk 0:00:18]} 24. Rfd1 {[%clk 0:01:28]}  Rc2 {[%clk 0:00:16]} 25. Qe7 {[%clk 0:01:24]}  c5 {[%clk 0:00:15]} 26. Rd8+ {[%clk 0:01:24]} 1-0


[Site "https://www.chess.com"]

[Event "Titled Tuesday Blitz April 26 Late 2022"]
[White "Derraugh, Geordie"]
[Black "Martinez Reyes, Pedro Ramon"]
[WhiteFideId "2603950"]
[BlackFideId "3901807"]
[WhiteElo "2450"]
[BlackElo "2568"]
[Result "1-0"]
[Round "10"]
[TimeControl "180+1"]
[Date "2022.04.26"]
[WhiteClock "0:00:03"]
[BlackClock "0:01:33"]

1. e4 {[%clk 0:03:00]}  g5 {[%clk 0:02:54]} 2. d4 {[%clk 0:02:59]}  Bg7 {[%clk 0:02:55]} 3. Bxg5 {[%clk 0:02:56]}  c5 {[%clk 0:02:55]} 4. c3 {[%clk 0:02:50]}  cxd4 {[%clk 0:02:55]} 5. cxd4 {[%clk 0:02:50]}  Qb6 {[%clk 0:02:56]} 6. Nc3 {[%clk 0:01:45]}  Qxd4 {[%clk 0:02:46]} 7. Qxd4 {[%clk 0:01:44]}  Bxd4 {[%clk 0:02:47]} 8. Nf3 {[%clk 0:01:43]}  Bxc3+ {[%clk 0:02:45]} 9. bxc3 {[%clk 0:01:42]}  Nc6 {[%clk 0:02:46]} 10. Rb1 {[%clk 0:01:36]}  b6 {[%clk 0:02:46]} 11. Bc4 {[%clk 0:01:34]}  Bb7 {[%clk 0:02:45]} 12. O-O {[%clk 0:01:31]}  Rc8 {[%clk 0:02:46]} 13. Bd5 {[%clk 0:01:30]}  h6 {[%clk 0:02:46]} 14. Bh4 {[%clk 0:01:29]}  e6 {[%clk 0:02:47]} 15. Bb3 {[%clk 0:01:29]}  Nge7 {[%clk 0:02:47]} 16. Rfe1 {[%clk 0:01:27]}  Rg8 {[%clk 0:02:47]} 17. Bg3 {[%clk 0:01:27]}  Na5 {[%clk 0:02:45]} 18. Rbc1 {[%clk 0:01:25]}  Nc4 {[%clk 0:02:45]} 19. Nd4 {[%clk 0:01:24]}  a6 {[%clk 0:02:39]} 20. Rcd1 {[%clk 0:01:23]}  h5 {[%clk 0:02:35]} 21. Nf3 {[%clk 0:01:20]}  Na5 {[%clk 0:02:27]} 22. Ne5 {[%clk 0:01:16]}  Bc6 {[%clk 0:02:27]} 23. Bc2 {[%clk 0:01:09]}  f6 {[%clk 0:02:26]} 24. Nf3 {[%clk 0:01:01]}  Kf7 {[%clk 0:02:22]} 25. Bd3 {[%clk 0:00:59]}  b5 {[%clk 0:02:22]} 26. Nd4 {[%clk 0:00:59]}  Bb7 {[%clk 0:02:17]} 27. Ne2 {[%clk 0:00:45]}  Ng6 {[%clk 0:02:10]} 28. h4 {[%clk 0:00:42]}  Bc6 {[%clk 0:02:07]} 29. Nd4 {[%clk 0:00:34]}  Bb7 {[%clk 0:02:04]} 30. Ne2 {[%clk 0:00:32]}  Nc6 {[%clk 0:02:04]} 31. Bc2 {[%clk 0:00:28]}  Nce5 {[%clk 0:02:04]} 32. Bb3 {[%clk 0:00:27]}  Bc6 {[%clk 0:02:03]} 33. Nd4 {[%clk 0:00:24]}  Ke7 {[%clk 0:02:01]} 34. Rd2 {[%clk 0:00:21]}  Bb7 {[%clk 0:01:57]} 35. Ne2 {[%clk 0:00:21]}  Rc7 {[%clk 0:01:56]} 36. Red1 {[%clk 0:00:21]}  Rgc8 {[%clk 0:01:55]} 37. f4 {[%clk 0:00:21]}  Ng4 {[%clk 0:01:55]} 38. f5 {[%clk 0:00:21]}  N6e5 {[%clk 0:01:55]} 39. fxe6 {[%clk 0:00:15]}  dxe6 {[%clk 0:01:55]} 40. Nf4 {[%clk 0:00:15]}  Rxc3 {[%clk 0:01:53]} 41. Be1 {[%clk 0:00:15]}  Rxb3 {[%clk 0:01:50]} 42. axb3 {[%clk 0:00:14]}  Bxe4 {[%clk 0:01:51]} 43. Rd6 {[%clk 0:00:10]}  Bf5 {[%clk 0:01:47]} 44. Rxa6 {[%clk 0:00:10]}  Rc7 {[%clk 0:01:47]} 45. Bb4+ {[%clk 0:00:07]}  Kf7 {[%clk 0:01:47]} 46. Bd6 {[%clk 0:00:07]}  Rc2 {[%clk 0:01:41]} 47. Ra7+ {[%clk 0:00:05]}  Ke8 {[%clk 0:01:37]} 48. Bxe5 {[%clk 0:00:02]}  fxe5 {[%clk 0:01:38]} 49. Nxh5 {[%clk 0:00:02]}  Be4 {[%clk 0:01:36]} 50. Ng7+ {[%clk 0:00:02]}  Kf8 {[%clk 0:01:33]} 51. Rd8# {[%clk 0:00:03]} 1-0


[Site "https://www.chess.com"]

[Event "Titled Tuesday Blitz April 26 Late 2022"]
[White "Domingo Nunez, Alejandro"]
[Black "Li, Ben"]
[WhiteFideId "22245561"]
[BlackFideId "2089980"]
[WhiteElo "2215"]
[BlackElo "2267"]
[Result "1-0"]
[Round "10"]
[TimeControl "180+1"]
[Date "2022.04.26"]
[WhiteClock "0:00:52"]
[BlackClock "0:00:26"]

1. Nf3 {[%clk 0:02:27]}  d5 {[%clk 0:02:59]} 2. g3 {[%clk 0:02:27]}  c5 {[%clk 0:02:59]} 3. c4 {[%clk 0:02:26]}  d4 {[%clk 0:02:59]} 4. Bg2 {[%clk 0:02:26]}  Nc6 {[%clk 0:02:59]} 5. O-O {[%clk 0:02:27]}  e5 {[%clk 0:02:59]} 6. a3 {[%clk 0:02:26]}  a5 {[%clk 0:02:57]} 7. e3 {[%clk 0:02:25]}  Bd6 {[%clk 0:02:57]} 8. exd4 {[%clk 0:02:25]}  cxd4 {[%clk 0:02:58]} 9. c5 {[%clk 0:02:23]}  Bc7 {[%clk 0:02:57]} 10. d3 {[%clk 0:02:23]}  Nge7 {[%clk 0:02:57]} 11. Nbd2 {[%clk 0:02:23]}  O-O {[%clk 0:02:54]} 12. Nc4 {[%clk 0:02:24]}  Nd5 {[%clk 0:02:48]} 13. Re1 {[%clk 0:02:24]}  Re8 {[%clk 0:02:42]} 14. Bd2 {[%clk 0:02:13]}  Bg4 {[%clk 0:02:41]} 15. h3 {[%clk 0:02:13]}  Bh5 {[%clk 0:02:41]} 16. Rc1 {[%clk 0:02:07]}  f5 {[%clk 0:02:36]} 17. g4 {[%clk 0:02:00]}  fxg4 {[%clk 0:02:10]} 18. Ng5 {[%clk 0:02:00]}  Nf6 {[%clk 0:02:05]} 19. Qb3 {[%clk 0:01:52]}  Kh8 {[%clk 0:01:36]} 20. Qxb7 {[%clk 0:01:42]}  Rb8 {[%clk 0:01:23]} 21. Qxc6 {[%clk 0:01:40]}  gxh3 {[%clk 0:01:23]} 22. Bxh3 {[%clk 0:01:29]}  Qe7 {[%clk 0:01:07]} 23. Nd6 {[%clk 0:01:13]}  Rf8 {[%clk 0:01:01]} 24. Nf5 {[%clk 0:01:11]}  Qd8 {[%clk 0:00:43]} 25. Ne6 {[%clk 0:01:11]}  Qd5 {[%clk 0:00:40]} 26. Qxd5 {[%clk 0:01:09]}  Nxd5 {[%clk 0:00:41]} 27. Nxf8 {[%clk 0:01:09]}  Rxf8 {[%clk 0:00:41]} 28. Bg2 {[%clk 0:00:57]}  Nf4 {[%clk 0:00:38]} 29. Bxf4 {[%clk 0:00:57]}  exf4 {[%clk 0:00:39]} 30. Nxd4 {[%clk 0:00:57]}  f3 {[%clk 0:00:38]} 31. Ne6 {[%clk 0:00:56]}  Rc8 {[%clk 0:00:30]} 32. Nxc7 {[%clk 0:00:55]}  Rxc7 {[%clk 0:00:31]} 33. Bxf3 {[%clk 0:00:54]}  Bg6 {[%clk 0:00:29]} 34. c6 {[%clk 0:00:52]}  h5 {[%clk 0:00:29]} 35. d4 {[%clk 0:00:52]}  h4 {[%clk 0:00:28]} 36. d5 {[%clk 0:00:53]}  Rf7 {[%clk 0:00:26]} 37. c7 {[%clk 0:00:52]}  Rxf3 {[%clk 0:00:26]} 38. c8=Q+ {[%clk 0:00:52]}  Kh7 {[%clk 0:00:26]} 39. Qg4 {[%clk 0:00:53]}  Rf5 {[%clk 0:00:26]} 40. Qxh4+ {[%clk 0:00:53]}  Rh5 {[%clk 0:00:26]} 41. Qxh5+ {[%clk 0:00:54]}  Bxh5 {[%clk 0:00:27]} 42. d6 {[%clk 0:00:54]}  g5 {[%clk 0:00:27]} 43. Rc7+ {[%clk 0:00:55]}  Kh6 {[%clk 0:00:27]} 44. Re6+ {[%clk 0:00:54]}  Bg6 {[%clk 0:00:27]} 45. d7 {[%clk 0:00:55]}  g4 {[%clk 0:00:27]} 46. d8=Q {[%clk 0:00:55]}  Kh5 {[%clk 0:00:27]} 47. Rc5+ {[%clk 0:00:54]}  Kh6 {[%clk 0:00:26]} 48. Qh8# {[%clk 0:00:52]} 1-0


[Site "https://www.chess.com"]

[Event "Titled Tuesday Blitz April 26 Late 2022"]
[White "Jarocka, Liwia"]
[Black "De Souza, Cristiano Gomes"]
[WhiteFideId "21807558"]
[BlackFideId "2151758"]
[WhiteElo "1896"]
[BlackElo "2068"]
[Result "1-0"]
[Round "10"]
[TimeControl "180+1"]
[Date "2022.04.26"]
[WhiteClock "0:00:46"]
[BlackClock "0:00:14"]

1. e4 {[%clk 0:03:00]}  c5 {[%clk 0:02:46]} 2. Nf3 {[%clk 0:02:59]}  d6 {[%clk 0:02:46]} 3. d4 {[%clk 0:02:58]}  cxd4 {[%clk 0:02:44]} 4. Nxd4 {[%clk 0:02:59]}  Nf6 {[%clk 0:02:38]} 5. Nc3 {[%clk 0:02:59]}  g6 {[%clk 0:02:38]} 6. Be3 {[%clk 0:02:57]}  Bg7 {[%clk 0:02:38]} 7. f3 {[%clk 0:02:57]}  O-O {[%clk 0:02:39]} 8. Qd2 {[%clk 0:02:57]}  Nc6 {[%clk 0:02:39]} 9. Bc4 {[%clk 0:02:57]}  Bd7 {[%clk 0:02:39]} 10. Bb3 {[%clk 0:02:57]}  a5 {[%clk 0:02:37]} 11. a4 {[%clk 0:02:55]}  Rc8 {[%clk 0:02:34]} 12. O-O {[%clk 0:02:54]}  Nxd4 {[%clk 0:02:35]} 13. Bxd4 {[%clk 0:02:54]}  Bc6 {[%clk 0:02:35]} 14. Rfd1 {[%clk 0:02:52]}  Nd7 {[%clk 0:02:36]} 15. Bxg7 {[%clk 0:02:50]}  Kxg7 {[%clk 0:02:36]} 16. Bd5 {[%clk 0:02:47]}  Qb6+ {[%clk 0:02:33]} 17. Kh1 {[%clk 0:02:45]}  Rfd8 {[%clk 0:02:25]} 18. b3 {[%clk 0:02:39]}  Qc5 {[%clk 0:02:23]} 19. Rac1 {[%clk 0:02:30]}  Nf6 {[%clk 0:02:20]} 20. Bxc6 {[%clk 0:02:28]}  bxc6 {[%clk 0:02:18]} 21. Ne2 {[%clk 0:02:26]}  Qb4 {[%clk 0:02:14]} 22. Qe3 {[%clk 0:02:17]}  c5 {[%clk 0:02:13]} 23. h3 {[%clk 0:01:59]}  c4 {[%clk 0:02:12]} 24. Rd4 {[%clk 0:01:43]}  e5 {[%clk 0:02:08]} 25. Rdd1 {[%clk 0:01:34]}  cxb3 {[%clk 0:02:00]} 26. cxb3 {[%clk 0:01:34]}  Rxc1 {[%clk 0:01:51]} 27. Rxc1 {[%clk 0:01:34]}  Rb8 {[%clk 0:01:50]} 28. Rc3 {[%clk 0:01:27]}  Nd7 {[%clk 0:01:37]} 29. Qd3 {[%clk 0:01:17]}  Rb6 {[%clk 0:01:31]} 30. Kh2 {[%clk 0:01:03]}  Nc5 {[%clk 0:01:26]} 31. Qd5 {[%clk 0:01:02]}  h5 {[%clk 0:00:57]} 32. Qa8 {[%clk 0:00:59]}  Nxb3 {[%clk 0:00:46]} 33. Rc8 {[%clk 0:00:56]}  Kf6 {[%clk 0:00:21]} 34. Rf8 {[%clk 0:00:52]}  Rb7 {[%clk 0:00:19]} 35. Qd8+ {[%clk 0:00:51]}  Re7 {[%clk 0:00:15]} 36. Re8 {[%clk 0:00:47]}  Qb8 {[%clk 0:00:14]} 37. Qxb8 {[%clk 0:00:46]} 1-0


[Site "https://www.chess.com"]

[Event "Titled Tuesday Blitz April 26 Late 2022"]
[White "Jobava, Baadur"]
[Black "Bortnyk, Olexandr"]
[WhiteFideId "13601520"]
[BlackFideId "14120828"]
[WhiteElo "2617"]
[BlackElo "2723"]
[Result "1/2-1/2"]
[Round "10"]
[TimeControl "180+1"]
[Date "2022.04.26"]
[WhiteClock "0:02:16"]
[BlackClock "0:02:49"]

1. d4 {[%clk 0:02:18]}  d6 {[%clk 0:02:59]} 2. e4 {[%clk 0:02:17]}  Nf6 {[%clk 0:02:59]} 3. Nc3 {[%clk 0:02:17]}  Nbd7 {[%clk 0:02:54]} 4. Nf3 {[%clk 0:02:16]}  e5 {[%clk 0:02:55]} 5. Be2 {[%clk 0:02:16]}  Be7 {[%clk 0:02:55]} 6. O-O {[%clk 0:02:16]}  c6 {[%clk 0:02:55]} 7. Re1 {[%clk 0:02:16]}  Qc7 {[%clk 0:02:55]} 8. Bf1 {[%clk 0:02:17]}  O-O {[%clk 0:02:55]} 9. h3 {[%clk 0:02:16]}  b5 {[%clk 0:02:50]} 10. a3 {[%clk 0:02:16]}  a5 {[%clk 0:02:49]} 1/2-1/2


[Site "https://www.chess.com"]